[Event "Fall GM-C Norm Invitational 2022"]
[Site "Charlotte"]
[Date "2022.11.21"]
[Round "8"]
[White "Escobar Forero, Alder"]
[Black "Slade, Theodore"]
[Result "1-0"]
[ECO "C47"]
[WhiteElo "2510"]
[BlackElo "2028"]
[Annotator "TA"]
[PlyCount "177"]
[EventDate "2022.11.18"]
[EventType "tourn"]
[EventCountry "USA"]
[SourceTitle "playchess.com"]
[Source "ChessBase"]
[SourceQuality "1"]
[TimeControl "5400+30"]

{[%evp 9,177,7,7,14,3,10,6,0,3,-7,-12,-8,-5,-14,-12,-28,-29,-29,-28,-20,-39,-27,-23,-16,-6,-10,-8,-39,-35,-44,-41,-44,-32,-47,-20,-12,-23,-27,0,0,0,0,59,46,56,7,10,8,43,36,36,36,36,46,37,44,45,47,39,43,120,110,104,43,43,44,43,45,45,20,20,16,167,167,168,168,168,168,168,168,168,167,167,140,140,140,140,140,140,133,133,133,133,133,133,133,133,133,178,145,145,145,188,188,188,188,188,188,188,188,188,188,188,188,188,188,188,188,188,188,188,188,188,188,188,188,188,188,188,0,188,188,188,188,188,188,188,188,188,188,188,188,188,188,188,188,188,188,188,188,188,188,188,188,188,188,29977,29977,29978,29979,29980,29981,29981,29981,29982,29983,29983,29984,29982,29967]} 1. e4 {[%emt 0:00:03]} e5 {[%emt 0:00:13]} 2. Nf3 {[%emt 0:00:06]} Nc6 {[%emt 0:00:09]} 3. Nc3 {[%emt 0:00:56]} Nf6 {[%emt 0:00:11]} 4. a3 {[%emt 0:00:04]} d5 {[%emt 0:01:13]} 5. exd5 {[%emt 0:05:59]} Nxd5 {[%emt 0:00:40]} 6. Bb5 {[%emt 0:01:13] C47: Scotch Four Knights and Four Knights with 4 g3.} Nxc3 {[%emt 0:00:56]} 7. bxc3 {[%emt 0:00:02]} Bd6 {[%emt 0:00:29]} 8. d4 {[%emt 0:00:41] The position is equal.} exd4 {[%emt 0:02:14]} 9. cxd4 {[%emt 0:00:05]} O-O {[%emt 0:00:38]} 10. O-O {[%emt 0:00:07]} Bg4 {[%emt 0:01:54]} 11. c3 {[%emt 0:00:09]} Qf6 {[%emt 0:00:52]} 12. h3 {[%emt 0:00:52]} Bxf3 {[%emt 0:00:42]} 13. Qxf3 {[%emt 0:00:02]} Qxf3 {[%emt 0:00:16]} 14. gxf3 {[%emt 0:00:02]} Ne7 {[%emt 0:01:27][%cal Bc6e7,Be7g6,Bg6h4,Bh4f3][%mdl 32]} 15. Re1 {[%emt 0:05:08]} Ng6 {[%emt 0:08:22] [#]} 16. Rb1 $146 {[%emt 0:01:58]} ({Predecessor:} 16. Re4 f5 17. Re6 Nh4 18. Kf1 Rf6 19. Rxf6 gxf6 20. Rb1 Kg7 21. a4 c6 22. Bc4 {½-½ (51) Unat,C (2130)-Marn,J (2280) Belgrade 2021}) 16... c6 {[%emt 0:20:25]} 17. Bf1 {[%emt 0:08:51]} b6 {[%emt 0:04:11]} 18. c4 {[%emt 0:01:59]} Rfe8 {[%emt 0:03:25]} 19. Rd1 {[%emt 0:07:29]} Nh4 {[%emt 0:03:16]} 20. Rb3 {[%emt 0:00:32]} Re6 {[%emt 0:05:13]} 21. a4 {[%emt 0:04:57][%cal Oa4a5]} Rae8 {[%emt 0:02:38]} 22. a5 {[%emt 0:01:03]} bxa5 {[%emt 0:04:56]} 23. c5 {[%emt 0:00:42]} Bc7 {[%emt 0:01:56]} 24. Be3 {[%emt 0:03:11]} Nxf3+ {[%emt 0:06:52]} 25. Kh1 $1 {[%emt 0:00:14]} Kf8 {[%emt 0:06:34]} (25... g5 $11) 26. Rb7 $14 {[%emt 0:04:40][%csl LRa7,LRc7]} R8e7 {[%emt 0:01:33]} 27. Bc4 {[%emt 0:15:47]} (27. Rxa7 $14 {might be stronger.} h6 28. Bg2) 27... Re4 $11 {[%emt 0:06:53]} 28. Bd3 {[%emt 0:01:35] This bishop pair is nice.} Rxd4 {[%emt 0:03:27]} (28... Rh4 $2 29. Be2 Nxd4 30. Rxd4 Rxd4 31. Bxd4 $18) 29. Bxd4 {[%emt 0:00:12]} Nxd4 {[%emt 0:00:07]} 30. Bc4 {[%emt 0:00:05]} Be5 {[%emt 0:05:44]} 31. Rxe7 {[%emt 0:00:05]} Kxe7 $14 {[%emt 0:00:07][%mdl 4096] Endgame KRB-KBN} 32. f4 {[%emt 0:00:03]} Bf6 {[%emt 0:00:23]} 33. Ra1 {[%emt 0:00:04]} Ne6 $1 {[%emt 0:03:01]} 34. Rxa5 {[%emt 0:00:02]} Bd4 {[%emt 0:00:33]} (34... Nxf4 $14 35. Rxa7+ Kd8) 35. Rxa7+ $16 {[%emt 0:01:00]} Kf6 {[%emt 0:01:14] [#]} 36. f5 {[%emt 0:03:45]} (36. Rd7 $1 $16 {Hoping for Bxe6.} Bxc5 37. f5) 36... Kxf5 $14 {[%emt 0:01:15]} 37. Rxf7+ {[%emt 0:00:17]} Bf6 $1 {[%emt 0:00:03]} 38. Rd7 {[%emt 0:06:08] Threatens to win with Bxe6+.} Be5 {[%emt 0:02:12]} 39. Bxe6+ {[%emt 0:01:53]} ({Don't take} 39. Rf7+ $6 Bf6 40. Rd7 Nxc5 $16) 39... Kxe6 {[%emt 0:00:07] KR-KB} 40. Rd1 {[%emt 0:00:30]} Bb8 $2 {[%emt 0:02:01]} (40... g5 $11 {and Black stays safe.}) 41. Kg2 $18 {[%emt 0:00:20]} Ba7 {[%emt 0:00:14]} 42. Rd6+ {[%emt 0:00:05]} Ke7 {[%emt 0:00:13]} 43. Rxc6 {[%emt 0:00:11] Rc7+ would kill now.} Kd7 {[%emt 0:00:04] Prevents Rc7+.} 44. Rd6+ {[%emt 0:02:08]} Kc7 {[%emt 0:00:05]} 45. Rd5 {[%emt 0:00:05] And now Rf5 would win.} Kc6 {[%emt 0:00:09]} 46. Rh5 {[%emt 0:00:46]} h6 {[%emt 0:00:14]} 47. Kf3 {[%emt 0:00:04]} Bxc5 {[%emt 0:00:07]} 48. Ke4 {[%emt 0:00:07]} Be7 {[%emt 0:00:49]} 49. Rd5 {[%emt 0:00:13]} Bf6 {[%emt 0:00:27]} 50. Rd1 {[%emt 0:00:08]} h5 {[%emt 0:01:09]} 51. Kf5 {[%emt 0:00:44]} h4 {[%emt 0:00:21]} 52. Ke6 {[%emt 0:00:40]} Kc5 {[%emt 0:00:44]} 53. Rd5+ {[%emt 0:01:03]} Kc6 {[%emt 0:00:09]} 54. Rf5 {[%emt 0:00:18]} Bd8 {[%emt 0:01:48]} 55. Rf8 {[%emt 0:00:28]} Ba5 {[%emt 0:02:05]} 56. Rg8 {[%emt 0:00:18]} Be1 {[%emt 0:00:37]} 57. Rxg7 {[%emt 0:00:08]} Bg3 {[%emt 0:00:39]} 58. Rg5 {[%emt 0:00:34]} Bf2 {[%emt 0:00:17]} 59. Rf5 {[%emt 0:00:20]} Bg3 {[%emt 0:00:05]} 60. Rd5 {[%emt 0:00:07]} Bf2 {[%emt 0:00:16]} 61. Rd2 {[%emt 0:00:12]} Bg3 {[%emt 0:01:09]} 62. Rc2+ {[%emt 0:00:05]} Kb7 {[%emt 0:00:30]} 63. Rc5 {[%emt 0:02:20]} Kb6 {[%emt 0:00:18]} 64. Kd5 {[%emt 0:00:07]} Kb7 {[%emt 0:00:04]} 65. Rc6 {[%emt 0:00:10]} Bf4 {[%emt 0:00:33]} 66. Rc4 {[%emt 0:02:20]} Bg3 {[%emt 0:00:05]} 67. Rc2 {[%emt 0:07:25]} Kb6 {[%emt 0:00:05]} 68. Rc3 {[%emt 0:00:50]} Kb7 {[%emt 0:00:07]} 69. Rc6 {[%emt 0:00:45]} Bf4 $1 {[%emt 0:00:15]} 70. Kc5 {[%emt 0:01:04]} Bg3 {[%emt 0:00:20]} 71. Kb5 {[%emt 0:00:02]} Be1 {[%emt 0:01:05]} 72. Rc4 {[%emt 0:02:22]} Bg3 {[%emt 0:00:08]} 73. Kb4 {[%emt 0:00:43]} Kb6 {[%emt 0:00:13]} 74. Kb3 {[%emt 0:00:11]} Kb5 {[%emt 0:00:10]} 75. Rc8 {[%emt 0:00:02]} Bf2 {[%emt 0:00:35]} 76. Kc3 {[%emt 0:00:11]} Bg3 {[%emt 0:00:16]} 77. Kd4 {[%emt 0:00:13]} Kb6 {[%emt 0:00:11]} 78. Ke4 {[%emt 0:00:17]} Kb7 {[%emt 0:00:09]} 79. Rc3 {[%emt 0:00:41]} Be1 {[%emt 0:00:23]} 80. Rc1 {[%emt 0:00:34]} Bg3 {[%emt 0:00:10]} 81. Kf5 {[%emt 0:00:17] Threatening mate with Rc4.} Kb6 {[%emt 0:00:09]} 82. Kg5 {[%emt 0:00:20] Intending Rc4 and mate.} Kb7 $2 {[%emt 0:00:11] [#]} (82... Kb5 $18 83. Kg4 Bf2) 83. Rc4 {[%emt 0:02:28] White mates.} Kb6 {[%emt 0:00:06]} 84. Rxh4 {[%emt 0:00:19]} Kc5 {[%emt 0:05:52]} 85. Re4 {[%emt 0:00:17]} Kd5 {[%emt 0:00:06]} 86. Re8 {[%emt 0:00:05]} Bc7 {[%emt 0:00:51]} 87. h4 {[%emt 0:00:09][%cal Bh3h4,Bh4h5][%mdl 32]} Kd6 {[%emt 0:00:15]} 88. h5 {[%emt 0:00:07]} Kd7 {[%emt 0:00:03]} 89. Re2 {[%emt 0:00:05] Weighted Error Value: White=0.06 (flawless) /Black=0.13 (very precise)} 1-0

[Event "Fall GM-C Norm Invitational 2022"]
[Site "Charlotte"]
[Date "2022.11.21"]
[Round "8"]
[White "Wang, Tianqi"]
[Black "Ippolito, Dean"]
[Result "1-0"]
[ECO "A48"]
[WhiteElo "2428"]
[BlackElo "2368"]
[Annotator "TA"]
[PlyCount "61"]
[EventDate "2022.11.18"]
[EventType "tourn"]
[EventCountry "USA"]
[SourceTitle "playchess.com"]
[Source "ChessBase"]
[SourceQuality "1"]
[TimeControl "5400+30"]

{[%evp 9,61,0,9,0,0,0,3,0,0,0,45,58,50,38,49,51,66,63,133,137,140,147,123,129,141,121,149,114,180,178,196,189,207,204,220,235,242,214,256,213,198,185,242,260,518,494,494,485,568,549,620,609,548,480]} 1. d4 {[%emt 0:00:08]} Nf6 {[%emt 0:00:05][%cal Bg8f6,Bf6h5,Bh5f4][%mdl 32]} 2. Nf3 {[%emt 0:00:05]} g6 {[%emt 0:00:08]} 3. Nbd2 {[%emt 0:00:08]} Bg7 {[%emt 0:00:20]} 4. e4 {[%emt 0:00:05][%cal Be2e4,Be4e5][%mdl 32]} O-O {[%emt 0:00:17]} 5. e5 {[%emt 0:00:16]} Nh5 {[%emt 0:00:07]} 6. g4 {[%emt 0:00:14] A48: 1 d4 Nf6 2 Nf3 g6: Torre, London and Colle Systems.} Nf4 {[%emt 0:00:06]} 7. Ne4 {[%emt 0:00:04]} d5 {[%emt 0:00:29][%csl LRe4,LRg4]} 8. Ng3 {[%emt 0:00:06] The position is equal.} Ne6 {[%emt 0:01:40]} 9. Nf5 $1 {[%emt 0:00:05] [#]} f6 $146 {[%emt 0:08:28]} (9... c5 $5 {[%cal Rg6f5]} 10. Nxg7 Nxg7 $11) ({Predecessor:} 9... c5 10. Nxg7 Nxg7 11. h3 cxd4 12. Bh6 Qa5+ 13. Qd2 Qxd2+ 14. Nxd2 Nc6 15. f4 f6 16. exf6 exf6 {1-0 (34) Vidit,S (2727)-Grandelius,N (2672) Wijk aan Zee 2022}) 10. Nxg7 {[%emt 0:00:08]} Nxg7 {[%emt 0:00:10]} 11. h3 $36 {[%emt 0:00:23][%mdl 2048] White is pushing.} c5 $1 {[%emt 0:07:22]} 12. dxc5 {[%emt 0:14:49]} fxe5 {[%emt 0:00:52]} 13. Nxe5 {[%emt 0:02:13] Black must now prevent Bg2.} Qa5+ {[%emt 0:08:20] White stays focused until the end.} (13... Nc6 $14) 14. Qd2 $16 {[%emt 0:00:21]} Qxc5 {[%emt 0:00:43]} 15. Bg2 {[%emt 0:00:17]} d4 {[%emt 0:01:43]} 16. Nd3 {[%emt 0:00:46]} Qd6 {[%emt 0:00:40]} 17. b3 {[%emt 0:00:56]} Nc6 {[%emt 0:10:32]} 18. Bb2 {[%emt 0:01:06]} e5 {[%emt 0:02:13]} (18... Bd7 $16) 19. O-O-O $18 {[%emt 0:01:53]} Bd7 {[%emt 0:08:40]} 20. Rhe1 {[%emt 0:03:05]} Rae8 {[%emt 0:00:41]} 21. Re2 {[%emt 0:05:56]} Re7 {[%emt 0:05:24]} 22. Rde1 {[%emt 0:00:17]} Rfe8 {[%emt 0:00:05]} 23. Kb1 {[%emt 0:00:41]} b5 {[%emt 0:00:52]} 24. a3 {[%emt 0:04:33][%cal Ba2a3,Ba3a4][%mdl 32]} a5 {[%emt 0:02:00]} 25. Bh1 {[%emt 0:00:22]} b4 {[%emt 0:06:05]} (25... a4 {was necessary.} 26. b4 Nd8) 26. a4 {[%emt 0:01:30]} Kf7 $2 {[%emt 0:19:22]} (26... Nd8 {was worth a try.} 27. f4 exf4) 27. Bxc6 {[%emt 0:06:16] White is clearly winning.} Bxc6 {[%emt 0:00:03] [#]} 28. Nxe5+ {[%emt 0:00:36][%mdl 512]} Rxe5 {[%emt 0:03:38]} (28... Kg8 29. Nxc6) 29. Qf4+ {[%emt 0:00:46]} Qf6 {[%emt 0:00:07]} 30. Qxf6+ {[%emt 0:00:08]} ({Not} 30. Qxd4 R5e6 31. Qc4 (31. Qxf6+ Rxf6 32. Rxe8 Nxe8 $16) 31... Qf3 32. Bxg7 Qd5 33. Qxd5 (33. Rxe6 Rxe6 34. Qxd5 Bxd5 $16) 33... Bxd5 34. Rxe6 Rxe6 $16) 30... Kxf6 31. Rxe5 {[%emt 0:00:08] Weighted Error Value: White=0.06 (flawless) /Black=0.36} 1-0

[Event "Fall GM-C Norm Invitational 2022"]
[Site "Charlotte"]
[Date "2022.11.22"]
[Round "9"]
[White "Sethuraman, Sandeep"]
[Black "Wang, Tianqi"]
[Result "0-1"]
[ECO "A61"]
[WhiteElo "2371"]
[BlackElo "2428"]
[Annotator "TA"]
[PlyCount "80"]
[EventDate "2022.11.18"]
[EventType "tourn"]
[EventCountry "USA"]
[SourceTitle "playchess.com"]
[Source "ChessBase"]
[SourceQuality "1"]
[TimeControl "5400+30"]

{[%evp 18,80,30,27,27,30,27,27,35,41,30,14,26,0,0,-56,-59,-60,-41,-47,-30,-66,-66,-139,-135,-157,-59,-52,-55,-79,-73,-184,-189,-186,-181,-139,-145,-200,-193,-184,-191,-263,-209,-497,-485,-533,-508,-516,-502,-477,-466,-528,-514,-525,-519,-522,-485,-504,-502,-556,-564,-558,-549,-1165,-1071]} 1. d4 {[%emt 0:00:01]} Nf6 {[%emt 0:00:22]} 2. c4 {[%emt 0:00:05]} c5 {[%emt 0:00:05]} 3. d5 {[%emt 0:00:04]} e6 {[%emt 0:00:05]} 4. Nc3 {[%emt 0:00:03]} exd5 {[%emt 0:00:03]} 5. cxd5 {[%emt 0:00:05]} d6 {[%emt 0:00:02]} 6. Nf3 {[%emt 0:00:07]} g6 {[%emt 0:00:03]} 7. Bf4 {[%emt 0:00:12]} a6 {[%emt 0:00:04]} 8. a4 {[%emt 0:00:05]} Bg7 {[%emt 0:00:15]} 9. h3 {[%emt 0:00:22]} O-O {[%emt 0:00:05]} 10. e3 {[%emt 0:00:04]} Ne8 {[%emt 0:00:11] A61: Modern Benoni: Nf3 without early e4.} 11. Nd2 {[%emt 0:07:27]} Nd7 {[%emt 0:01:35][%cal Bb8d7,Bd7e5,Be5f7][%mdl 32]} 12. Be2 {[%emt 0:01:18]} b6 {[%emt 0:01:39] White has an edge.} 13. O-O {[%emt 0:08:18]} Ne5 {[%emt 0:01:14]} 14. Bh2 {[%emt 0:03:01]} f5 {[%emt 0:04:53]} 15. Qb3 {[%emt 0:08:04]} Rb8 {[%emt 0:04:39]} 16. f4 {[%emt 0:00:11]} (16. Rfd1 $11) 16... Nf7 $1 $15 {[%emt 0:00:22]} 17. e4 {[%emt 0:02:28] [#]} fxe4 $146 {[%emt 0:02:41]} ({Predecessor:} 17... Kh8 18. Kh1 Nc7 19. Nc4 fxe4 20. Nxe4 Bf5 21. Ng3 Nh6 22. Bf3 b5 23. axb5 axb5 {0-1 (45) Janik,I (2500)-Sowul,B (2186) Suwalki 2021}) 18. Ndxe4 {[%emt 0:01:15]} b5 {[%emt 0:00:36]} 19. axb5 {[%emt 0:07:12]} axb5 {[%emt 0:00:21]} 20. Bxb5 {[%emt 0:07:14]} (20. Kh1 $15) 20... Nc7 $17 {[%emt 0:00:36]} 21. Qc4 {[%emt 0:00:36]} Bf5 {[%emt 0:10:46]} (21... Nxb5 $17 22. Nxb5 Bf5) 22. Bc6 $1 $15 {[%emt 0:10:40]} Rxb2 {[%emt 0:01:10]} 23. Rae1 {[%emt 0:03:41]} Qb8 {[%emt 0:15:17] Black is more active.} ({Don't take} 23... Rc2 24. Qb3 Bxc3 25. Qxc2 Bxe1 26. Rxe1 $11) 24. g4 {[%emt 0:06:09] [#]} (24. Rc1 $17) 24... Bc8 $1 $36 {[%emt 0:02:11][%cal Bf5c8,Bc8a6,Ba6d3][%mdl 2080] Black is really pushing.} 25. Ra1 {[%emt 0:02:03]} Qb4 {[%emt 0:08:26]} 26. Qxb4 {[%emt 0:02:15]} cxb4 {[%emt 0:00:14]} ({Much weaker is} 26... Rxb4 $6 27. Ra7 Ne8 28. Re1 $11) 27. Na4 {[%emt 0:03:29] [#]} (27. Nb5 $17 {might work better.} Nxb5 28. Bxb5) 27... Re2 $1 {[%emt 0:20:47]} 28. Rae1 {[%emt 0:01:14]} Ra2 {[%emt 0:00:35] Strongly threatening ...Ba6.} 29. Rb1 {[%emt 0:08:23]} (29. Rd1 $142) 29... Ba6 {[%emt 0:00:44]} 30. Rf3 {[%emt 0:00:28]} (30. Rfd1 Rb8 31. g5) 30... Bd4+ {[%emt 0:04:20] Black is clearly winning.} 31. Kh1 {[%emt 0:00:03] [#]} Ne5 $1 {[%emt 0:00:27][%mdl 512]} 32. Rfb3 {[%emt 0:08:37]} Nxc6 {[%emt 0:02:59]} 33. dxc6 {[%emt 0:00:13]} Rxa4 {[%emt 0:00:06]} 34. Rxb4 {[%emt 0:00:29]} Bd3 {[%emt 0:03:00][%csl LRb1,LRe4][%cal Rd3e4]} 35. Nxd6 {[%emt 0:00:16]} Ra2 {[%emt 0:08:06] aiming for ...Bc5.} 36. Rxd4 {[%emt 0:04:46]} Bxb1 {[%emt 0:00:20]} 37. f5 {[%emt 0:00:04]} Ra6 {[%emt 0:01:43]} 38. Rb4 {[%emt 0:03:46]} Ba2 {[%emt 0:01:07]} 39. Be5 {[%emt 0:00:44]} Rxc6 {[%emt 0:00:22]} 40. Rb7 {[%emt 0:00:03]} Bd5+ {[%emt 0:00:11] Weighted Error Value: White=0.41/Black=0.08 (flawless)} 0-1

[Event "Fall GM-C Norm Invitational 2022"]
[Site "Charlotte"]
[Date "2022.11.22"]
[Round "9"]
[White "Rodriguez Garcia, Victor"]
[Black "Escobar Forero, Alder"]
[Result "1/2-1/2"]
[ECO "A46"]
[WhiteElo "2350"]
[BlackElo "2510"]
[Annotator "TA"]
[PlyCount "38"]
[EventDate "2022.11.18"]
[EventType "tourn"]
[EventCountry "USA"]
[SourceTitle "playchess.com"]
[Source "ChessBase"]
[SourceQuality "1"]
[TimeControl "5400+30"]

{[%evp 15,16,10,25]} 1. d4 {[%emt 0:00:04]} Nf6 {[%emt 0:00:07]} 2. Nf3 {[%emt 0:00:11]} d6 {[%emt 0:00:04]} 3. e3 {[%emt 0:00:15]} Bg4 {[%emt 0:00:08]} 4. Be2 {[%emt 0:00:07]} Nbd7 {[%emt 0:00:05]} 5. O-O {[%emt 0:00:06]} e5 {[%emt 0:00:06]} 6. c4 {[%emt 0:00:08]} Be7 {[%emt 0:00:05]} 7. Nc3 {[%emt 0:00:07]} O-O {[%emt 0:00:06]} 8. b3 {[%emt 0:00:08]} c6 {[%emt 0:00:36] [#]} {Predecessor:} 9. Bb2 $146 {A53: Old Indian Defence without Nf3.} e4 10. Nd2 Bxe2 11. Qxe2 d5 12. f3 exf3 13. Qxf3 Nb6 14. Rad1 Bb4 15. e4 Bxc3 16. Bxc3 Nxe4 17. Nxe4 dxe4 18. Qxe4 Qd7 19. Rd3 Rae8 {0-1 (46) Nefedov,S (2313)-Pridorozhni,A (2580) Chess.com INT 2021} 1/2-1/2

[Event "Fall GM-C Norm Invitational 2022"]
[Site "Charlotte"]
[Date "2022.11.22"]
[Round "9"]
[White "Slade, Theodore"]
[Black "Macieja, Bartlomiej"]
[Result "0-1"]
[ECO "A62"]
[WhiteElo "2028"]
[BlackElo "2514"]
[Annotator "TA"]
[PlyCount "100"]
[EventDate "2022.11.18"]
[EventType "tourn"]
[EventCountry "USA"]
[SourceTitle "playchess.com"]
[Source "ChessBase"]
[SourceQuality "1"]
[TimeControl "5400+30"]

{[%evp 18,100,8,11,39,14,29,12,11,23,11,10,64,10,17,-5,-1,-94,-68,-66,-58,-131,-138,-142,-158,-151,-128,-314,-265,-255,-256,-256,-256,-362,-260,-258,-258,-259,-261,-263,-257,-349,-354,-372,-379,-577,-606,-3704,-4290,-2739,-2341,-1349,-1037,-2751,-2577,-29972,-29973,-29981,-29982,-29982,-29983,-29983,-29984,-29983,-29984,-29985,-29986,-29986,-29987,-29988,-29989,-29990,-29991,-29994,-29995,-29995,-29996,-29996,-29996,-29997,-29998,-29998,-29999,-29999,-29999]} 1. d4 {[%emt 0:00:02]} Nf6 2. c4 {[%emt 0:00:07]} e6 {[%emt 0:00:06]} 3. g3 {[%emt 0:00:10]} c5 {[%emt 0:00:05]} 4. d5 {[%emt 0:00:05]} exd5 {[%emt 0:00:03]} 5. cxd5 {[%emt 0:00:13]} d6 {[%emt 0:00:03]} 6. Nc3 {[%emt 0:00:09]} g6 {[%emt 0:00:03][%cal Bg7g6,Bg6g5,Bg5g4][%mdl 32]} 7. Bg2 {[%emt 0:00:10]} Bg7 {[%emt 0:00:04]} 8. Nf3 {[%emt 0:00:09]} O-O {[%emt 0:00:05]} 9. O-O {[%emt 0:00:11]} Re8 {[%emt 0:00:02]} 10. Bf4 {[%emt 0:00:09]} h6 {[%emt 0:00:03] 10...Bf5 is the modern continuation. A62: Modern Benoni: Fianchetto Variation without early ...Nbd7.} 11. Re1 {[%emt 0:03:29]} g5 {[%emt 0:00:40]} 12. Bd2 {[%emt 0:06:19]} Bf5 {[%emt 0:00:04] The position is equal.} 13. h4 {[%emt 0:02:08]} g4 {[%emt 0:00:05]} 14. Nh2 {[%emt 0:00:09]} h5 {[%emt 0:04:43]} ({Black should play} 14... Qd7 $11) 15. e4 {[%emt 0:05:52]} (15. Bf4 $14) 15... Bg6 $11 {[%emt 0:00:13] [#]} 16. Bg5 $146 {[%emt 0:00:34]} ({Predecessor:} 16. Bf4 a6 17. a4 Nfd7 18. Nf1 Ne5 19. Ne3 Nbd7 20. Nf5 Bf8 21. b3 Rc8 22. a5 {0-1 (30) Perez,R (2362)-Jacobson,B (2533) New York 2022}) 16... Nbd7 {[%emt 0:00:25]} 17. f4 {[%emt 0:16:12] [#]} (17. Nf1 $11) 17... gxf3 $1 $17 {[%emt 0:01:54]} 18. Bxf3 {[%emt 0:00:38]} c4 {[%emt 0:41:38] White must now prevent ...Qb6+.} 19. Kh1 {[%emt 0:17:16]} (19. Kg2 $1 $15) 19... b5 {[%emt 0:10:09]} 20. Nxb5 {[%emt 0:08:33]} Qb6 {[%emt 0:02:09]} 21. Nc3 {[%emt 0:04:01]} Qxb2 {[%emt 0:00:28] Black is more active.} 22. Bd2 {[%emt 0:02:17] White does not recover from this.} (22. Rc1 $17 {was necessary.}) 22... Nxe4 23. Bxe4 {[%emt 0:15:55] [#] And now Rb1 would win.} Bxc3 {[%emt 0:12:07]} 24. Bxc3 {[%emt 0:01:03]} Qxc3 {[%emt 0:00:40]} ({Not} 24... Bxe4+ 25. Rxe4 Qxc3 26. Rc1 Qxg3 27. Rexc4 $17) 25. Bxg6 {[%emt 0:02:22]} (25. Rc1 $142 Qa5 26. Bxg6 fxg6 27. Re6) 25... Rxe1+ {[%emt 0:01:08]} 26. Qxe1 {[%emt 0:00:07]} Qxe1+ {[%emt 0:00:03]} 27. Rxe1 {[%emt 0:00:10]} fxg6 $19 {[%emt 0:00:03][%mdl 4096] Endgame KRN-KRN} 28. Nf3 {[%emt 0:02:25]} Rc8 {[%emt 0:00:59]} 29. Nd4 {[%emt 0:07:21]} Rc5 {[%emt 0:08:19]} 30. Nc6 {[%emt 0:04:33]} c3 {[%emt 0:01:02]} 31. Rc1 {[%emt 0:01:01]} (31. Kg2 $142) 31... Ne5 {[%emt 0:03:48]} 32. Nxe5 {[%emt 0:01:01]} dxe5 {[%emt 0:00:08][%cal Bd6e5,Be5e4,Be4e3,Be3e2][%mdl 32] KR-KR} 33. Kg2 {[%emt 0:00:34]} Kf7 {[%emt 0:00:05] Threatens to win with ...c2.} 34. Kf3 {[%emt 0:00:22]} Ke7 {[%emt 0:00:02]} 35. Ke4 {[%emt 0:01:27]} Kd6 {[%emt 0:00:02] ...c2 is the strong threat.} 36. Kd3 {[%emt 0:00:45]} c2 {[%emt 0:00:17] Black mates.} 37. Rxc2 {[%emt 0:00:28]} e4+ {[%emt 0:00:16]} 38. Kd2 {[%emt 0:00:05]} Rxc2+ {[%emt 0:00:13]} 39. Kxc2 {[%emt 0:00:04]} Kxd5 {[%emt 0:00:04] KP-KP} 40. Kc3 {[%emt 0:01:05]} Kc5 {[%emt 0:00:06]} 41. Kd2 {[%emt 0:00:44]} Kd4 {[%emt 0:00:06]} 42. Ke2 {[%emt 0:00:04]} e3 {[%emt 0:00:04]} 43. a4 {[%emt 0:00:47]} a5 {[%emt 0:00:05]} 44. Ke1 {[%emt 0:00:04]} Kd3 {[%emt 0:00:15]} 45. Kd1 {[%emt 0:00:03]} e2+ {[%emt 0:00:10]} 46. Ke1 {[%emt 0:00:02]} Ke3 {[%emt 0:00:11]} 47. g4 {[%emt 0:00:03]} hxg4 {[%emt 0:00:04]} 48. h5 {[%emt 0:00:03]} g3 {[%emt 0:00:10][%cal Bg4g3,Bg3g2,Bg2g1][%mdl 32]} 49. hxg6 {[%emt 0:00:02]} g2 {[%emt 0:00:07][%cal Rg2g1]} 50. g7 {[%emt 0:00:03]} g1=B {[%emt 0:00:43] Weighted Error Value: White=0.77/Black=0.10 (very precise)} 0-1